bitfinex/quotes_ETHUSD_20241223
["timestamp","ask_amount","ask_price","bid_price","bid_amount"]
[1734948248712,2.99697,3336.7,3336.1,0.8181]
[1734948249115,3.54652,3337.2,3336.1,0.8181]
[1734948249116,2.99679,3337.0,3336.1,0.8181]
[1734948249314,2.9968,3336.9,3336.1,0.8181]
[1734948250116,3.0,3337.6,3336.2,0.8239]
[1734948250272,3.0,3337.6,3336.5,0.8239]
[1734948250614,5.99618,3337.6,3336.5,0.8239]
[1734948251385,3.0,3337.7,3336.6,2.99705]
[1734948251635,3.0,3337.6,3336.7,0.825]
[1734948251915,3.0,3337.6,3336.8,0.825]
[1734948252415,2.99592,3337.9,3336.8,0.85496589]
[1734948252773,2.99606,3337.8,3336.8,0.825]
[1734948252975,2.99608,3337.7,3336.8,0.825]
[1734948253223,2.99608,3337.7,3336.8,1.507213]
[1734948253422,2.9959,3337.9,3336.9,0.7742]
[1734948253732,2.99608,3337.7,3336.9,0.7742]
[1734948254025,0.7998,3338.0,3336.9,0.7742]
[1734948254331,0.55,3337.7,3336.9,0.7742]
[1734948254628,2.99631,3337.5,3336.9,0.7742]
[1734948255603,2.99607,3337.7,3336.9,0.7742]
[1734948255805,0.55,3337.9,3336.9,0.7742]
[1734948256029,2.99618,3337.6,3336.9,0.7742]
[1734948257006,0.55,3337.9,3336.9,0.7742]
[1734948257213,2.99626,3337.5,3336.9,0.7742]
[1734948258223,2.99661,3337.1,3336.9,0.7742]
[1734948258732,0.55,3337.3,3336.2,0.8288]
[1734948258895,2.99687,3336.9,3336.2,0.8288]
[1734948259289,0.55,3337.3,3336.2,0.8288]
[1734948259503,0.7663,3337.6,3336.3,0.02997331]
[1734948259831,3.0,3337.5,3336.1,0.7672]
[1734948260038,2.99627,3337.5,3336.4,0.7672]
[1734948260338,2.49653739,3337.8,3336.7,0.7672]
[1734948260649,2.9959,3337.9,3336.7,0.7672]
[1734948260650,2.9959,3337.9,3336.8,0.7672]
[1734948261071,3.26283739,3338.2,3336.8,0.7672]
[1734948261072,2.99602,3337.8,3336.8,0.7672]
[1734948261374,3.26283739,3338.2,3336.8,0.7672]
[1734948261518,2.99586,3338.0,3336.8,0.7672]
[1734948261716,2.99586,3338.0,3337.0,0.7685]
[1734948261966,2.99618,3337.6,3337.0,0.7685]
[1734948262176,0.8273,3337.6,3337.0,0.7685]
[1734948262321,3.0,3337.5,3336.6,0.7685]
[1734948262519,2.9966,3337.2,3336.6,0.7685]
[1734948263122,5.99634,3337.5,3336.6,0.7685]
[1734948263422,2.99634,3337.5,3336.6,0.7685]
[1734948263957,2.99607,3337.7,3336.6,0.7685]
[1734948264163,2.99607,3337.7,3336.8,0.8209]
[1734948266025,3.30633739,3338.2,3336.8,0.8209]
[1734948266248,2.99627,3337.5,3336.8,0.8209]
[1734948266447,0.55,3337.8,3336.8,0.8209]
[1734948266674,2.9963,3337.5,3336.8,0.8209]
[1734948267026,0.7826,3337.7,3336.8,0.8209]
[1734948267682,2.99636,3337.4,3336.8,0.8209]
[1734948267828,0.55,3337.6,3335.7,3.0]
[1734948268163,2.99625,3337.5,3335.9,0.8254]
[1734948268329,2.99669,3337.1,3335.9,0.8254]
[1734948268531,2.99669,3337.1,3336.0,0.8254]
[1734948268885,2.99669,3337.1,3336.1,0.8254]
[1734948269084,3.27913739,3337.7,3336.1,0.8254]
[1734948269250,2.99642,3337.4,3336.3,0.8254]
[1734948269588,2.99642,3337.4,3336.5,0.8254]
[1734948269589,2.49653739,3337.4,3336.5,0.8254]
[1734948269794,2.99685,3336.9,3336.5,0.8254]
[1734948270130,2.99643,3337.3,3336.5,0.8254]
[1734948270441,2.99701,3336.7,3336.5,0.8254]
[1734948270629,2.99701,3336.7,3335.6,0.8254]
[1734948270869,2.99714,3336.6,3335.8,0.8254]
[1734948272152,2.99722,3336.5,3335.8,0.8254]
[1734948272374,2.49653739,3337.0,3335.8,0.8254]
[1734948272538,2.99741,3336.3,3335.8,0.8254]
[1734948272973,2.99698,3336.7,3335.8,0.8254]
[1734948273376,2.99746,3336.2,3335.8,0.8254]
[1734948273784,2.99725,3336.4,3335.8,0.8254]
[1734948274299,2.99733,3336.3,3335.8,0.8254]
[1734948274437,5.49377739,3336.4,3335.8,0.8254]
[1734948275385,2.49653739,3336.4,3335.8,0.8254]
[1734948275677,1.39340934,3337.1,3335.8,0.8254]
[1734948275678,2.99751,3336.1,3335.8,0.8254]
[1734948276675,5.49404739,3336.1,3335.8,0.8254]
[1734948277558,2.99769,3335.9,3334.8,0.8323]
[1734948277761,2.9978,3335.8,3335.0,0.8323]
[1734948278886,2.99788,3335.7,3335.0,0.8323]
[1734948279050,2.49653739,3336.0,3335.0,0.8323]
[1734948279463,2.99789,3335.7,3335.0,0.8323]
[1734948280406,2.99805,3335.5,3335.0,0.8323]
[1734948281072,3.31993739,3335.9,3335.1,0.0269314]
[1734948281298,2.99814,3335.4,3335.1,0.0269314]
[1734948281600,2.99814,3335.4,3335.0,0.8323]
[1734948281803,2.99814,3335.4,3335.2,0.02780492]
[1734948281964,2.99814,3335.4,3335.0,0.8323]
[1734948282166,2.99814,3335.4,3335.3,0.02780492]
[1734948282397,2.99814,3335.4,3335.0,0.8323]
[1734948282605,2.99814,3335.4,3335.3,0.02780492]
[1734948282908,2.99814,3335.4,3335.0,0.8323]
[1734948283405,2.99814,3335.4,3335.1,0.02780492]
[1734948283965,2.49653739,3335.9,3335.1,0.02780492]
[1734948284166,5.49653739,3335.9,3335.1,0.02780492]
[1734948284406,2.99798,3335.6,3335.1,0.02780492]
[1734948284561,5.49653739,3335.9,3335.1,0.02780492]
[1734948284762,2.99805,3335.5,3335.0,0.8323]
[1734948285001,5.49653739,3336.0,3335.2,0.02780492]
[1734948285216,5.49653739,3336.0,3335.3,0.8076]
[1734948285516,2.99784,3335.8,3335.3,0.8076]
[1734948285664,5.49653739,3336.0,3335.3,0.8076]
[1734948285665,2.99805,3335.5,3335.3,0.8076]
[1734948286590,2.99814,3335.4,3335.3,0.8076]
[1734948286786,2.998,3335.6,3335.3,0.8076]
[1734948288066,3.8025,3336.1,3335.3,0.8076]
[1734948288267,2.99769,3335.9,3335.3,0.8076]
[1734948288492,2.99776,3335.9,3335.3,0.8076]
[1734948288890,3.0,3336.1,3335.3,0.8076]
[1734948289075,2.49653739,3336.2,3335.3,0.8076]
[1734948289467,2.49653739,3336.2,3335.5,0.8258]
[1734948289871,2.49653739,3336.2,3335.6,0.02805844]
[1734948290127,2.49653739,3336.5,3335.6,0.02805844]
[1734948290496,2.99741,3336.3,3335.6,0.02805844]
[1734948291308,2.99763,3336.0,3335.6,0.02805844]
[1734948293512,2.99736,3336.3,3335.7,0.7762]
[1734948293838,2.99717,3336.5,3335.8,0.0278983]
[1734948294127,3.0,3336.6,3335.8,0.0278983]
[1734948294436,5.49653739,3336.8,3335.9,0.8040983]
[1734948294724,5.49653739,3336.8,3336.0,0.7762]
[1734948294935,2.49653739,3336.8,3336.0,0.7762]
[1734948295083,2.49653739,3336.8,3336.2,0.8286]
[1734948295438,2.49653739,3336.8,3336.3,0.02765151]
[1734948295718,2.99687,3336.9,3336.4,0.7891]
[1734948295917,5.49314739,3337.2,3336.4,0.7891]
[1734948296332,5.49314739,3337.2,3336.5,0.02765151]
[1734948296618,2.99661,3337.2,3336.5,0.02765151]
[1734948299418,3.0,3337.5,3336.5,0.02765151]
[1734948299722,2.99653,3337.2,3336.4,0.7891]
[1734948300088,2.99653,3337.2,3336.5,0.02765151]
[1734948300688,2.99636,3337.4,3336.6,0.7891]
[1734948301535,2.49653739,3337.5,3336.8,0.7891]
[1734948302029,2.49653739,3337.7,3336.8,0.7891]
[1734948302240,2.49653739,3337.7,3336.9,3.02674831]
[1734948302524,2.49653739,3337.7,3337.1,0.7786]
[1734948302902,2.49653739,3338.0,3337.1,0.7786]
[1734948303090,2.49653739,3338.0,3337.2,0.02654455]
[1734948303717,2.49653739,3338.0,3337.1,0.7786]
[1734948304116,2.99579,3338.1,3337.2,0.02641122]
[1734948304648,2.99588,3338.0,3337.2,0.02641122]
[1734948305005,3.29903739,3338.2,3337.2,0.02641122]
[1734948305212,2.99633,3337.5,3337.1,0.7786]
[1734948305392,2.99634,3337.5,3337.1,0.7786]
[1734948305598,3.0,3338.1,3337.2,0.04902117]
[1734948305815,3.0,3338.1,3337.1,0.7786]
[1734948305816,2.99652,3337.2,3337.1,0.7786]
[1734948306023,2.99652,3337.2,3336.7,0.7822]
[1734948306339,2.99652,3337.2,3337.1,0.02621793]
[1734948306538,2.99652,3337.2,3336.7,0.7822]
[1734948307161,2.99679,3337.0,3336.8,0.02621793]
[1734948307435,2.99679,3337.0,3336.7,0.7822]
[1734948307642,2.99674,3337.0,3336.7,0.7822]
[1734948307939,2.99643,3337.3,3336.7,0.7822]
[1734948308516,2.49653739,3337.5,3336.8,0.02647789]
[1734948308517,5.49653739,3337.5,3336.8,0.02647789]
[1734948308717,3.0,3337.5,3336.9,0.7822]
[1734948309508,2.49653739,3337.7,3336.9,0.7822]
[1734948309816,2.49653739,3337.8,3337.1,0.8209]
[1734948310238,2.49653739,3337.8,3337.2,0.02643789]
[1734948310239,2.99644,3337.3,3337.2,0.02643789]
[1734948310442,2.49653739,3337.8,3337.1,0.8209]
[1734948310617,2.99626,3337.5,3337.2,0.02643789]
[1734948310823,2.99626,3337.5,3337.1,0.8209]
[1734948311501,2.99626,3337.5,3337.2,0.02643789]
[1734948311707,2.99606,3337.8,3337.1,0.8209]
[1734948313568,5.99583,3338.0,3337.1,0.8209]
[1734948313863,2.99589,3337.9,3337.1,1.202672]
[1734948314009,2.99589,3337.9,3337.1,0.8209]
[1734948314819,2.99601,3337.8,3337.1,0.8209]
[1734948315917,2.99582,3338.0,3337.1,0.8209]
[1734948316122,2.49653739,3338.1,3337.1,0.8209]
[1734948316450,3.0,3338.1,3337.2,0.8127615]
[1734948316651,2.49653739,3338.2,3337.4,0.7828]
[1734948316853,2.49653739,3338.2,3337.2,3.0]
[1734948317155,2.49653739,3338.2,3337.9,0.8147]
[1734948317319,2.49653739,3338.5,3337.9,0.8147]
[1734948318245,2.49653739,3338.5,3338.1,2.99569]
[1734948318464,2.49653739,3338.5,3337.8,3.0]
[1734948318465,2.49653739,3339.2,3338.3,0.8147]
[1734948318655,2.99484,3339.1,3338.3,0.8147]
[1734948319530,0.7555,3339.6,3338.3,0.8147]
[1734948319877,0.7555,3339.0,3338.3,0.8147]
[1734948320170,2.9951,3338.8,3338.3,0.8147]
[1734948320726,2.99488,3339.1,3338.3,0.8147]
[1734948321030,2.99517,3338.8,3338.3,0.8147]
[1734948321225,2.99446,3339.5,3338.3,0.8147]
[1734948321433,2.99538,3338.5,3338.3,0.8147]
[1734948321642,2.99517,3338.8,3338.3,0.8147]
[1734948321859,2.99518,3338.7,3338.3,0.8147]
[1734948322028,2.99481,3339.1,3338.3,0.8147]
[1734948322429,2.99518,3338.7,3338.3,0.8147]
[1734948323641,2.995,3338.9,3338.3,0.8147]
[1734948324667,2.99516,3338.8,3338.3,0.8147]
[1734948325269,2.99521,3338.7,3338.3,0.8147]
[1734948325453,2.99528,3338.6,3338.3,0.8147]
[1734948326232,2.99539,3338.5,3338.3,0.8147]
[1734948326461,0.7555,3339.3,3338.3,0.8147]
[1734948326462,2.99519,3338.7,3338.3,0.8147]
[1734948327056,3.0,3339.4,3337.5,0.8322]
[1734948327057,0.7821,3338.8,3337.5,0.8322]
[1734948327372,2.99604,3337.8,3337.5,0.8322]
[1734948327570,2.99616,3337.6,3337.5,0.8322]
[1734948327780,2.99572,3338.1,3337.5,0.8322]
[1734948328266,2.99522,3338.7,3337.5,0.8322]
[1734948328267,2.99551,3338.4,3337.5,0.8322]
[1734948330872,2.99526,3338.6,3337.5,1.215071]
[1734948331078,2.99576,3338.1,3337.5,0.8322]
[1734948331396,2.99585,3338.0,3337.5,0.8322]
[1734948331599,0.7669,3338.5,3337.5,0.8322]
[1734948331801,2.99564,3338.2,3337.5,0.8322]
[1734948332108,2.99572,3338.1,3337.5,0.8322]
[1734948333199,0.7669,3338.5,3337.5,0.8322]
[1734948333200,2.99584,3338.0,3337.5,0.8322]
[1734948333776,2.99597,3337.9,3337.5,0.8322]
[1734948333970,2.99602,3337.8,3337.5,0.8322]
[1734948334973,2.99616,3337.6,3337.5,0.8322]
[1734948335680,3.55,3338.3,3337.3,0.7909]
[1734948335904,0.7615,3337.8,3336.4,0.7909]
[1734948336104,2.99642,3337.4,3336.6,0.7909]
[1734948336974,0.7615,3337.8,3336.6,0.7909]
[1734948337171,2.99616,3337.7,3336.7,0.7909]
[1734948337812,2.99621,3337.6,3336.7,0.7909]
[1734948338113,2.99621,3337.6,3336.9,0.7749]
[1734948338604,2.99596,3337.9,3337.0,0.02996561]
[1734948338779,2.49653739,3338.1,3337.1,0.7749]
[1734948338979,2.49653739,3338.1,3336.8,3.01695796]
[1734948338980,2.49653739,3338.1,3337.3,0.7571]
[1734948339512,5.49208739,3338.3,3337.3,0.7571]
[1734948339667,5.49208739,3338.3,3337.5,0.8307]
[1734948340207,2.99555,3338.3,3337.5,0.8307]
[1734948340414,2.49653739,3338.5,3337.5,2.99624]
[1734948340573,5.49653739,3338.5,3337.6,0.8307]
[1734948340769,2.49653739,3338.5,3337.6,0.8307]
[1734948340972,2.49653739,3338.5,3337.8,0.8307]
[1734948341197,2.49653739,3338.5,3337.9,0.8307]
[1734948341403,2.49653739,3338.6,3338.1,0.8307]
[1734948341980,2.99509,3338.8,3338.1,0.8307]
[1734948342883,5.49145739,3339.0,3338.1,0.8307]
[1734948343205,2.99492,3339.0,3338.1,0.8307]
[1734948343715,2.49653739,3339.1,3338.1,0.8307]
[1734948344211,2.49653739,3339.1,3338.2,0.8307]
[1734948344397,5.49136739,3339.1,3338.3,0.382649]
[1734948344826,2.99483,3339.1,3338.4,0.8272]
[1734948345431,5.49653739,3339.3,3338.4,0.8272]
[1734948345747,2.99517,3338.8,3338.4,0.8272]
[1734948346103,2.99489,3339.1,3338.4,0.8272]
[1734948346295,2.99492,3339.0,3338.4,0.8272]
[1734948347036,2.49653739,3339.2,3338.4,2.99539]
[1734948347265,2.49653739,3339.2,3338.6,0.8142]
[1734948347699,5.49102739,3339.5,3338.6,0.8142]
[1734948348447,2.49653739,3339.5,3338.6,0.8142]
[1734948349005,5.49083739,3339.7,3338.6,0.8142]
[1734948349204,2.99439,3339.6,3338.6,0.8142]
[1734948349504,2.99439,3339.6,3338.8,0.7642]
[1734948350306,2.9942,3339.8,3338.8,0.7642]
[1734948350537,3.27143739,3339.9,3338.8,0.7642]
[1734948351231,2.99439,3339.6,3338.8,0.7642]
[1734948351403,2.99449,3339.5,3338.8,0.7642]
[1734948352139,2.99428,3339.7,3338.8,0.7642]
[1734948352313,3.7749,3339.9,3338.8,0.7642]
[1734948352516,2.99469,3339.3,3338.8,0.7642]
[1734948354105,2.99422,3339.8,3338.8,0.7642]
[1734948354443,2.99442,3339.6,3338.8,0.7642]
[1734948356149,5.99419,3339.9,3338.9,0.8271]
[1734948356770,2.99429,3339.7,3338.9,0.8271]
[1734948358239,2.99412,3339.9,3338.9,0.8271]
[1734948358641,5.49653739,3340.1,3338.9,0.8271]
[1734948358851,2.99412,3339.9,3338.9,0.8271]
[1734948359155,2.99412,3339.9,3339.0,0.382217]
[1734948359311,2.99412,3339.9,3339.1,0.7973]
[1734948359512,3.0,3339.9,3339.1,0.7973]
[1734948359710,2.99416,3339.9,3339.1,0.7973]
[1734948360647,2.49653739,3340.1,3339.1,0.7973]
[1734948360861,2.49653739,3340.1,3339.0,0.382217]
[1734948360862,2.49653739,3340.1,3339.2,0.79414403]
[1734948361013,2.49653739,3340.1,3339.6,0.7642]
[1734948361209,2.49653739,3340.1,3339.6,0.79414037]
[1734948361756,2.49653739,3340.1,3339.8,0.7672]
[1734948362254,0.46888477,3340.5,3339.8,0.7672]
[1734948363056,0.46888477,3340.5,3339.9,0.7768]
[1734948363252,2.49653739,3341.1,3340.2,0.7815]
[1734948363453,2.49653739,3341.1,3340.1,2.9939]
[1734948363454,2.49653739,3341.1,3340.3,0.7815]
[1734948363862,2.49653739,3341.1,3340.4,3.78921]
[1734948364066,3.13280092,3341.2,3340.6,2.99347]
[1734948364067,2.49653739,3341.2,3340.6,2.99347]
[1734948364360,2.49653739,3341.2,3341.0,0.7956]
[1734948365317,3.80169,3342.2,3341.0,0.7956]
[1734948365318,3.0,3342.1,3341.0,0.7956]
[1734948365527,2.99228,3342.0,3341.0,0.7956]
[1734948365835,3.0,3342.1,3341.2,0.8031]
[1734948366060,2.9923,3342.0,3341.2,0.8031]
[1734948366354,2.49653739,3342.2,3341.2,0.8031]
[1734948366355,3.0,3342.2,3341.2,0.8031]
[1734948366532,2.99276,3341.4,3341.2,0.8031]
[1734948366728,3.81242,3341.9,3341.2,0.8031]
[1734948366933,2.99256,3341.7,3341.2,0.8031]
[1734948367120,2.99241,3341.8,3341.2,0.8031]
[1734948367334,2.99236,3341.9,3341.2,0.8031]
[1734948367531,2.99261,3341.6,3341.2,0.8031]
[1734948368032,2.99262,3341.6,3341.2,0.8031]
[1734948369259,2.99222,3342.0,3341.2,0.8031]
[1734948369582,3.77231,3342.4,3341.2,0.8031]
[1734948369583,2.99253,3341.7,3341.2,0.8031]
[1734948370153,2.99232,3341.9,3341.2,0.8031]
[1734948371068,2.99222,3342.0,3341.2,0.8031]
[1734948371371,2.99253,3341.7,3341.2,0.8031]
[1734948371984,2.99284,3341.4,3340.3,0.8182]
[1734948372175,0.8223,3342.0,3340.2,0.3805336]
[1734948372176,2.99248,3341.7,3340.4,0.41926536]
[1734948372353,2.99286,3341.3,3340.5,0.8182]
[1734948372878,2.99248,3341.7,3340.5,0.8182]
[1734948372879,2.99295,3341.2,3340.5,0.8182]
[1734948373078,2.99248,3341.7,3340.5,0.8182]
[1734948373079,2.99323,3340.9,3340.5,0.8182]
[1734948373482,2.99248,3341.7,3339.9,0.8251]
[1734948373483,2.99372,3340.4,3339.9,0.8251]
[1734948374496,2.99346,3340.7,3339.9,0.8251]
[1734948374693,2.99347,3340.6,3339.9,0.8251]
[1734948374974,2.9938,3340.3,3339.9,0.8251]
[1734948375153,3.8074,3340.8,3339.9,0.8251]
[1734948375352,2.99349,3340.6,3339.9,0.8251]
[1734948375951,2.99311,3341.0,3339.9,0.8251]
[1734948376150,0.8282,3341.1,3339.9,0.8251]
[1734948376151,2.99324,3340.9,3340.0,0.7681]
[1734948376380,5.993,3341.2,3340.0,0.7681]
[1734948376582,5.993,3341.2,3340.2,0.8315]
[1734948376896,2.99277,3341.4,3340.4,0.8315]
[1734948377449,2.99256,3341.7,3340.5,0.8315]
[1734948377665,2.99269,3341.5,3340.5,0.8315]
[1734948377858,0.31071359,3341.8,3340.5,0.8315]
[1734948378153,2.99308,3341.1,3340.5,0.8315]
[1734948378647,2.99332,3340.8,3340.5,0.8315]
[1734948378996,0.8129,3341.1,3340.0,0.8243]
[1734948378997,2.99356,3340.6,3340.0,0.8243]
[1734948383921,2.99311,3341.0,3340.0,0.8243]
[1734948384268,2.99353,3340.6,3340.0,0.8243]
[1734948385211,2.99303,3341.1,3340.0,0.8243]
[1734948385423,2.99292,3341.3,3340.2,0.7923]
[1734948386185,2.99292,3341.3,3340.3,0.7923]
[1734948386347,2.99292,3341.3,3340.3,0.82223285]
[1734948387346,0.783,3341.7,3340.3,0.82223285]
[1734948387549,2.99347,3340.6,3340.3,0.7923]
[1734948388063,3.0,3341.3,3340.3,0.7923]
[1734948388198,2.99313,3341.0,3340.3,0.7923]
[1734948388394,3.0,3341.3,3340.3,0.7923]
[1734948388598,2.99323,3340.9,3340.3,0.7923]
[1734948388799,2.99303,3341.1,3340.3,0.7923]
[1734948389821,3.0,3341.6,3340.3,0.7923]
[1734948390035,2.99277,3341.4,3340.5,0.8104]
[1734948390456,2.99289,3341.3,3340.5,0.8104]
[1734948395779,3.0,3341.6,3340.5,0.8104]
[1734948395959,2.99303,3341.1,3340.5,0.8104]
[1734948396123,2.9929,3341.3,3340.5,0.8104]
[1734948397174,2.99293,3341.2,3340.5,0.8104]
[1734948402260,2.99293,3341.2,3340.5,1.19082]
[1734948404613,2.99293,3341.2,3340.6,0.8236]
[1734948407680,5.48937739,3341.4,3340.6,0.8236]
[1734948407921,2.49653739,3341.4,3341.1,0.7506]
[1734948408086,2.49653739,3341.4,3341.2,0.7506]
[1734948408280,2.49653739,3341.4,3341.3,1.12795476]
[1734948409042,2.99197,3342.3,3341.3,1.12795476]
[1734948409043,2.49653739,3342.0,3341.4,0.8097]
[1734948409190,2.49653739,3342.0,3341.5,0.8097]
[1734948409390,2.49653739,3342.0,3341.6,0.8097]
[1734948409741,2.49653739,3342.2,3341.9,0.8097]
[1734948409906,2.49653739,3342.2,3342.0,0.30281839]
[1734948410085,2.49653739,3342.2,3341.9,0.8097]
[1734948410923,2.49653739,3342.7,3341.9,0.8097]
[1734948411243,0.31268905,3342.1,3341.9,0.8097]
[1734948411426,0.7514,3342.8,3341.9,0.8097]
[1734948411586,0.37445658,3342.2,3341.1,0.7521]
[1734948411786,1.15345658,3342.2,3341.1,1.43979847]
[1734948412389,1.15345658,3342.2,3341.1,0.7521]
[1734948412823,0.779,3342.2,3341.1,0.7521]
[1734948413034,2.49653739,3342.1,3341.1,0.7521]
[1734948413594,5.49653739,3342.1,3341.1,0.7521]
[1734948416405,2.49653739,3341.8,3341.1,0.7521]
[1734948416733,2.49653739,3341.8,3340.3,0.8289]
[1734948416917,2.49653739,3341.8,3340.4,1.28089]
[1734948417323,2.49653739,3341.7,3340.4,1.28089]
[1734948417521,2.49653739,3341.7,3340.5,0.8289]
[1734948419153,2.49653739,3341.8,3340.5,0.8289]
[1734948419360,2.49653739,3341.8,3340.6,0.72983523]
[1734948419729,2.49653739,3341.7,3340.6,0.72983523]
[1734948419954,2.49653739,3341.7,3340.7,0.7592]
[1734948420411,2.49653739,3341.8,3340.7,0.7592]
[1734948421109,0.7888,3341.7,3340.7,0.7592]
[1734948421659,3.28533739,3341.7,3340.7,0.7592]
[1734948422770,2.49653739,3341.6,3340.7,0.7592]
[1734948422969,5.49653739,3341.6,3340.1,0.8219]
[1734948423208,4.3388,3341.5,3340.1,0.8219]
[1734948423370,4.3388,3341.5,3340.1,2.13221862]
[1734948423572,3.7888,3341.5,3340.2,0.02993643]
[1734948423904,3.7888,3341.5,3340.3,0.8219]
[1734948424053,2.49653739,3341.4,3340.3,0.8219]
[1734948424754,5.49653739,3341.6,3340.3,0.8219]
[1734948424953,5.49653739,3341.6,3340.5,0.7807]
[1734948426275,2.49653739,3341.4,3340.5,0.7807]
[1734948426661,0.7905,3341.3,3340.5,0.7807]
[1734948427256,2.49653739,3341.4,3340.5,0.7807]
[1734948427764,8.62933831,3341.5,3340.5,0.7807]
[1734948427972,5.49653739,3341.5,3340.5,0.7807]
[1734948431408,2.49653739,3341.4,3340.5,0.7807]
[1734948431698,1.3323,3341.3,3340.5,0.7807]
[1734948431860,4.3323,3341.3,3339.9,0.8138]
[1734948432057,6.82883739,3341.3,3339.9,0.8138]
[1734948432903,0.7823,3340.9,3339.3,1.8624284]
[1734948433073,0.55,3340.7,3339.3,1.25053464]
[1734948433401,0.55,3340.5,3339.3,1.25053464]
[1734948433600,0.55,3340.5,3339.2,0.8138]
[1734948434603,2.49653739,3340.0,3339.2,0.8138]
[1734948435569,2.49653739,3340.0,3339.3,0.30023623]
[1734948436286,2.49653739,3340.3,3339.3,0.30023623]
[1734948436611,2.49653739,3340.3,3339.4,0.8207]
[1734948436985,5.49653739,3340.3,3339.4,0.8207]
[1734948437189,3.0,3340.3,3339.4,0.8207]
[1734948437518,3.55,3340.5,3339.4,0.8207]
[1734948437716,0.7837,3340.3,3338.7,0.8207]
[1734948437867,0.7837,3340.3,3338.7,2.4446797]
[1734948438080,2.49653739,3340.2,3338.7,2.4446797]
[1734948438384,5.49653739,3340.2,3338.7,2.4446797]
[1734948439024,5.49653739,3340.2,3338.6,0.7562]
[1734948439173,2.49653739,3340.2,3338.6,0.78614633]
[1734948439372,2.49653739,3340.2,3338.6,0.7562]
[1734948439571,2.49653739,3340.2,3338.6,0.78614646]
[1734948439800,0.7837,3340.3,3338.6,0.78614646]
[1734948439967,0.7837,3340.3,3338.7,0.65841621]
[1734948440166,0.7837,3340.3,3338.9,0.8257]
[1734948441020,3.7837,3340.3,3338.9,0.8257]
[1734948441621,6.28023739,3340.3,3338.9,0.8257]
[1734948442423,3.7837,3340.3,3338.9,0.8257]
[1734948442723,2.49653739,3340.4,3338.9,0.8257]
[1734948442940,2.49653739,3340.4,3339.1,0.7838]
[1734948443240,3.0,3340.5,3339.1,0.7838]
[1734948443241,5.49653739,3340.5,3339.1,0.7838]
[1734948444143,3.0,3340.5,3339.1,0.7838]
[1734948444350,5.49653739,3340.6,3339.2,0.81374323]
[1734948444527,5.49653739,3340.6,3339.2,0.7838]
[1734948444845,5.49653739,3340.6,3339.0,2.88577343]
[1734948444846,2.49653739,3340.6,3339.4,0.7868]
[1734948445161,2.49653739,3340.7,3339.4,0.7868]
[1734948445858,2.49653739,3340.9,3339.4,0.7868]
[1734948446055,5.49653739,3340.9,3339.4,0.7868]
[1734948446197,0.55,3340.8,3339.4,0.7868]
[1734948446403,6.04653739,3340.8,3339.4,0.7868]
[1734948446642,0.7793,3340.7,3339.4,0.7868]
[1734948446842,0.55,3340.6,3339.4,0.7868]
[1734948447349,0.55,3340.4,3339.4,0.7868]
[1734948448222,3.55,3340.4,3339.4,0.7868]
[1734948448607,0.55,3340.2,3338.3,0.8133]
[1734948448807,0.55,3339.8,3338.4,0.8133]
[1734948449316,2.99508,3338.9,3338.4,0.8133]
[1734948449742,0.8203,3339.4,3338.4,0.8133]
[1734948450045,2.99535,3338.5,3338.4,0.8133]
[1734948450484,2.99535,3338.5,3337.4,0.8286]
[1734948450643,2.99535,3338.5,3337.3,11.97642]
[1734948450644,2.99505,3338.9,3337.5,2.109102]
[1734948450971,2.99505,3338.9,3337.5,0.8286]
[1734948451160,2.99546,3338.4,3337.5,0.8286]
[1734948452079,2.99519,3338.7,3337.5,0.8286]
[1734948452237,3.0,3339.0,3337.5,0.8286]
[1734948452431,3.76609,3338.9,3337.5,0.8286]
[1734948452748,2.99559,3338.3,3337.5,0.8286]
[1734948452946,0.55,3338.8,3337.5,1.80946]
[1734948452947,0.55,3338.6,3337.5,1.80946]
[1734948453130,2.99565,3338.2,3337.5,1.80946]
[1734948453528,0.55,3338.8,3337.5,1.80946]
[1734948453770,0.55,3338.8,3337.5,0.8286]
[1734948453930,2.99585,3338.0,3337.5,0.8286]
[1734948454127,0.55,3338.8,3337.5,0.8286]
[1734948454432,3.0,3338.6,3337.5,0.8286]
[1734948454627,0.55,3338.8,3337.5,0.8286]
[1734948454874,2.99571,3338.2,3337.5,0.8286]
[1734948455182,2.99573,3338.1,3337.5,0.8286]
[1734948455413,2.99553,3338.3,3337.5,0.8286]
[1734948455579,2.99564,3338.2,3337.5,0.8286]
[1734948456585,2.99556,3338.3,3337.5,0.8286]
[1734948456771,3.0,3338.7,3337.5,0.8286]
[1734948456976,0.55,3338.6,3337.5,0.8286]
[1734948457309,2.99582,3338.0,3337.5,0.8286]
[1734948457467,2.99563,3338.2,3337.5,0.8286]
[1734948459505,3.0,3338.4,3337.5,0.8286]
[1734948459722,5.99545,3338.4,3337.5,0.8286]
[1734948460562,2.99545,3338.4,3337.5,1.211111]
[1734948461190,2.99528,3338.6,3337.6,0.789]
[1734948461389,0.55,3338.8,3337.6,0.789]
[1734948461623,2.99517,3338.7,3337.6,0.789]
[1734948461905,3.0,3338.6,3337.6,0.789]
[1734948462564,2.99529,3338.6,3337.6,0.789]
[1734948462759,2.99529,3338.6,3337.7,0.7741]
[1734948462960,0.55,3338.8,3337.7,0.7741]
[1734948463191,2.99545,3338.4,3337.7,0.7741]
[1734948463466,2.99555,3338.3,3337.7,0.7741]
[1734948464121,2.9957,3338.2,3337.7,0.7741]
[1734948465306,2.9958,3338.1,3337.7,0.7741]
[1734948465537,2.99582,3338.0,3337.7,0.7741]
[1734948465841,0.55,3338.8,3337.7,0.7741]